fUST/lending_fUST_20250707
["ID","MTS","AMOUNT","RATE_DAILY","PERIOD"]
[370044443,1751862642213,-230.48668418,0.000247,7]
[370044444,1751862642223,-215.21338352,0.000247,7]
[370044445,1751862642232,-160.0,0.000247,7]
[370044446,1751862642241,-169.51761584,0.00024788,2]
[370044447,1751862642251,-2312.39,0.00024788,4]
[370044448,1751862642260,-350.42,0.00024788,4]
[370044449,1751862642269,-2614.02,0.00024788,2]
[370044450,1751862642279,-151.0,0.000248,9]
[370044451,1751862642288,-96764.43912438,0.000248,2]
[370044452,1751862642300,-10966.69633062,0.000248,2]
[370044453,1751862642309,-238.40868167,0.00024822,7]
[370044454,1751862642319,-215.0738,0.00024834,2]
[370044455,1751862642328,-8287.01041959,0.00024852,2]
[370044456,1751862642340,-150.0,0.00024873,2]
[370044457,1751862642354,-150.4315,0.00024875,2]
[370044458,1751862642367,-500.0,0.00024877,2]
[370044459,1751862642379,-151.0,0.00024877,2]
[370044460,1751862642391,-16574.0208392,0.00024878,2]
[370044461,1751862642403,-49200.99728426,0.00024888,2]
[370044462,1751862642416,-749.18887596,0.00024888,2]
[370044481,1751862643881,-270.39917752,0.00021999,2]
[370044482,1751862643893,-500.0,0.00021999,2]
[370044483,1751862643905,-500.0,0.00021999,2]
[370044484,1751862643918,-500.0,0.00021999,2]
[370044485,1751862643930,-500.0,0.00021999,2]
[370044486,1751862643943,-500.0,0.00021999,2]
[370044487,1751862643955,-500.0,0.00021999,2]
[370044488,1751862643967,-600.73420247,0.00021999,2]
[370044489,1751862643979,-500.0,0.00021999,2]
[370044490,1751862643989,-500.0,0.00021999,2]
[370044491,1751862644000,-469.92583304,0.00021999,2]
[370044492,1751862644010,-500.0,0.00021999,2]
[370044493,1751862644021,-500.0,0.00021999,2]
[370044495,1751862644031,-415.41428327,0.00021999,2]
[370044496,1751862644042,-500.0,0.00021999,2]
[370044499,1751862644053,-329.59275799,0.00024658,2]
[370044501,1751862644064,-7183.41233938,0.00024888,2]
[370044503,1751862644081,-595.33629105,0.00024888,2]
[370044506,1751862644096,-500.0,0.00024888,2]
[370044508,1751862644109,-1258.39944735,0.00024888,2]
[370044509,1751862644125,-262.248948,0.00024888,2]
[370044510,1751862644138,-8894.94975558,0.00024888,2]
[370044511,1751862644152,-40432.08205511,0.00024888,2]
[370044512,1751862644163,-2614.02,0.00024888,5]
[370044513,1751862644175,-209.0,0.0002489,20]
[370044514,1751862644186,-22469.49590395,0.0002489,2]
[370044549,1751862646767,-160.0,0.00017328,2]
[370044552,1751862646778,-460.0,0.00017328,2]
[370044554,1751862646789,-460.0,0.00018276,2]
[370044556,1751862646799,-183.1484428,0.00023699,2]
[370044558,1751862646810,-16328.71,0.0002464,10]
[370044560,1751862646821,-10678.54577445,0.0002489,2]
[370044562,1751862646831,-19797.08863669,0.00024899,4]
[370044565,1751862646845,-648.96,0.00024899,4]
[370044570,1751862646882,-2098.400025,0.00024899,4]
[370044740,1751862857286,194.001895,0.00013699,2]
[370044745,1751863029039,425.63,0.0002739,120]
[370044746,1751863557138,-344.17154217,0.00017326,2]
[370044747,1751863610096,-153.03215247,0.00017226,2]
[370044748,1751863631090,-1.51136874,0.00017226,2]
[370044749,1751863631112,-332.14354319,0.00017326,2]
[370044750,1751863647103,-523.68491464,0.00017326,2]
[370044751,1751863647124,-877.0,0.00017326,2]
[370044752,1751863647146,-300.0,0.00017326,2]
[370044753,1751863647167,-460.0,0.00017327,2]
[370044754,1751863647188,-300.0,0.00017327,2]
[370044755,1751863647211,-300.0,0.00017327,2]
[370044756,1751863647232,-533.23,0.00017327,2]
[370044757,1751863647252,-460.0,0.00017327,2]
[370044758,1751863647271,-461.12462574,0.00017327,2]
[370044759,1751863647293,-237.40775313,0.00017327,2]
[370044760,1751863647312,-460.0,0.00017327,2]
[370044761,1751863647338,-460.0,0.00017327,2]
[370044762,1751863647357,-460.0,0.00017327,2]
[370044763,1751863647376,-460.54991565,0.00017327,2]
[370044764,1751863647396,-404.00808908,0.00017327,2]
[370044765,1751863647415,-460.0,0.00017327,2]
[370044766,1751863647436,-462.9568783,0.00017327,2]
[370044767,1751863647455,-460.07911846,0.00017327,2]
[370044768,1751863647475,-466.72136253,0.00017327,2]
[370044769,1751863647494,-460.0,0.00017327,2]
[370044770,1751863647513,-460.0,0.00017327,2]
[370044771,1751863647535,-460.0,0.00017327,2]
[370044772,1751863647556,-460.0,0.00017327,2]
[370044773,1751863647577,-460.0,0.00017327,2]
[370044774,1751863647601,-460.0,0.00017327,2]
[370044775,1751863647620,-460.0,0.00017327,2]
[370044776,1751863647640,-461.14424883,0.00017327,2]
[370044777,1751863647659,-460.0,0.00017327,2]
[370044778,1751863647678,-460.0,0.00017327,2]
[370044779,1751863647702,-460.0,0.00017327,2]
[370044780,1751863647723,-460.0,0.00017327,2]
[370044781,1751863647743,-605.79227653,0.00017327,2]
[370044782,1751863647763,-500.0,0.00017328,2]
[370044783,1751863647782,-460.0,0.00017328,2]
[370044784,1751863647802,-460.0,0.00017328,2]
[370044785,1751863647822,-460.0,0.00017328,2]
[370044786,1751863647842,-460.0,0.00017328,2]
[370044787,1751863647862,-462.61261598,0.00017328,2]
[370044788,1751863647882,-463.13515303,0.00017328,2]
[370044789,1751863647902,-460.0,0.00017328,2]
[370044790,1751863647922,-174.10134112,0.00017328,2]
[370044795,1751863745147,-300.0,0.00017031,2]
[370044796,1751863745170,-24900.0,0.00017032,2]
[370044797,1751863745192,-460.97217244,0.00017327,2]
[370044798,1751863745214,-460.0,0.00017327,2]
[370044799,1751863745235,-460.0,0.00017327,2]
[370044800,1751863745256,-460.0,0.00017327,2]
[370044801,1751863745277,-460.0,0.00017327,2]
[370044802,1751863745297,-102.93552152,0.00017327,2]
[370044803,1751863754157,-350.06812348,0.00017327,2]
[370044804,1751863754178,-460.0,0.00017327,2]
[370044805,1751863754200,-460.0,0.00017327,2]
[370044806,1751863754219,-462.04139139,0.00017327,2]
[370044807,1751863754243,-375.34245394,0.00017327,2]
[370044808,1751863754262,-460.0,0.00017327,2]
[370044809,1751863754283,-460.0,0.00017327,2]
[370044810,1751863754303,-461.13473647,0.00017327,2]
[370044811,1751863754324,-460.0,0.00017327,2]
[370044812,1751863754345,-460.0,0.00017327,2]
[370044813,1751863754364,-460.0,0.00017327,2]
[370044814,1751863754385,-460.0,0.00017327,2]
[370044815,1751863754407,-549.07,0.00017327,2]
[370044816,1751863754426,-462.8134957,0.00017327,2]
[370044817,1751863754446,-461.55681405,0.00017327,2]
[370044818,1751863754466,-460.81766967,0.00017327,2]
[370044819,1751863754487,-462.83565828,0.00017327,2]
[370044820,1751863754508,-460.0,0.00017327,2]
[370044821,1751863754529,-461.34945791,0.00017327,2]
[370044822,1751863754550,-460.0,0.00017327,2]
[370044823,1751863754570,-464.35440876,0.00017327,2]
[370044824,1751863754592,-460.0,0.00017327,2]
[370044825,1751863754617,-270.54,0.00017327,2]
[370044826,1751863754637,-460.0,0.00017327,2]
[370044827,1751863754657,-461.40621323,0.00017327,2]
[370044828,1751863754677,-285.89865888,0.00017328,2]
[370044829,1751863754702,-460.0,0.00017328,2]
[370044830,1751863754723,-460.0,0.00017328,2]
[370044831,1751863754743,-460.0,0.00017328,2]
[370044832,1751863754763,-460.0,0.00017328,2]
[370044833,1751863754784,-460.0,0.00017328,2]
[370044834,1751863754804,-460.0,0.00017328,2]
[370044835,1751863754824,-460.0,0.00017328,2]
[370044836,1751863754844,-460.0,0.00017328,2]
[370044837,1751863754864,-460.0,0.00017328,2]
[370044838,1751863754886,-460.0,0.00017328,2]
[370044839,1751863754908,-460.0,0.00017328,2]
[370044840,1751863754928,-460.0,0.00017328,2]
[370044841,1751863754949,-507.12253738,0.00017328,2]
[370044842,1751863754971,-460.0,0.00017328,2]
[370044843,1751863754992,-460.0,0.00017328,2]
[370044844,1751863755014,-460.0,0.00017328,2]
[370044845,1751863755034,-462.76493291,0.00017328,2]
[370044846,1751863755055,-460.0,0.00017328,2]
[370044847,1751863755075,-466.41226076,0.00017328,2]
[370044848,1751863755096,-463.79256293,0.00017328,2]
[370044849,1751863755116,-460.0,0.00017328,2]
[370044850,1751863755136,-460.0,0.00017601,2]
[370044851,1751863755160,-460.0,0.00017601,2]
[370044852,1751863755182,-460.0,0.00017601,2]
[370044853,1751863755205,-460.0,0.00017601,2]
[370044854,1751863755225,-378.64374552,0.00017601,2]
[370044855,1751863759092,-450.8,0.00017327,2]
[370044856,1751863759148,-10.76738114,0.00017327,2]
[370044857,1751863759170,-81.35625448,0.00017601,2]
[370044858,1751863759193,-460.0,0.00017601,2]
[370044859,1751863759214,-153.67015141,0.00017774,2]
[370044860,1751863759234,-556.72601745,0.00017874,2]
[370044861,1751863759259,-460.0,0.00017874,2]
[370044862,1751863759279,-609.45918397,0.00017874,2]
[370044863,1751863759299,-360.98415169,0.00017874,2]
[370044864,1751863759320,-460.0,0.00017874,2]
[370044865,1751863759340,-460.0,0.00017874,2]
[370044866,1751863759360,-460.0,0.00017874,2]
[370044867,1751863759379,-460.0,0.00017874,2]
[370044868,1751863759399,-460.0,0.00017874,2]
[370044869,1751863759419,-460.0,0.00017874,2]
[370044870,1751863759439,-172.82124323,0.00017874,2]
[370044871,1751863759458,-462.67744549,0.00017874,2]
[370044872,1751863759479,-460.0,0.00017874,2]
[370044873,1751863759498,-460.0,0.00017874,2]
[370044874,1751863759517,-460.0,0.00017874,2]
[370044875,1751863759537,-461.14459364,0.00017874,2]
[370044876,1751863759558,-460.0,0.00017874,2]
[370044877,1751863759579,-460.0,0.00017874,2]
[370044878,1751863759598,-460.0,0.00017874,2]
[370044879,1751863759618,-460.0,0.00017874,2]
[370044880,1751863759639,-460.0,0.00017874,2]
[370044881,1751863759661,-460.0,0.00017874,2]
[370044882,1751863759681,-460.0,0.00017874,2]
[370044883,1751863759701,-460.0,0.00017874,2]
[370044884,1751863759722,-460.0,0.00017874,2]
[370044885,1751863759743,-460.0,0.00017875,2]
[370044886,1751863759763,-338.14,0.00017875,2]
[370044887,1751863759784,-263.19,0.00017875,2]
[370044888,1751863759805,-460.0,0.00017875,2]
[370044889,1751863759825,-460.0,0.00018148,2]
[370044890,1751863759846,-460.0,0.00018148,2]
[370044891,1751863759868,-460.0,0.00018148,2]
[370044892,1751863759889,-460.0,0.00018148,2]
[370044893,1751863759909,-426.49,0.00018149,2]
[370044894,1751863759930,-156.09,0.00018149,2]
[370044895,1751863759950,-508.28685865,0.0001816,2]
[370044896,1751863759969,-500.0,0.00018195,2]
[370044897,1751863761422,461.12998091,0.00017327,2]
[370044898,1751863762986,267.39027318,0.00017874,2]
[370044914,1751863832018,-300.0,0.00017031,2]
[370044915,1751863832028,-461.46007948,0.00017032,2]
[370044916,1751863832037,-460.0,0.00017032,2]
[370044917,1751863832046,-461.93602101,0.00017032,2]
[370044918,1751863832055,-460.0,0.00017032,2]
[370044919,1751863832065,-462.58,0.00017032,2]
[370044920,1751863832074,-461.84964716,0.00017032,2]
[370044921,1751863832083,-460.0,0.00017032,2]
[370044922,1751863832092,-460.0,0.00017032,2]
[370044923,1751863832101,-463.12687624,0.00017032,2]
[370044924,1751863832110,-460.0,0.00017032,2]
[370044925,1751863832119,-460.0,0.00017032,2]
[370044926,1751863832128,-564.70373005,0.00017032,2]
[370044927,1751863832137,-460.0,0.00017032,2]
[370044928,1751863832146,-460.0,0.00017032,2]
[370044929,1751863832155,-463.18233469,0.00017306,2]
[370044930,1751863832165,-460.0,0.00017327,2]
[370044931,1751863832174,-460.0,0.00017327,2]
[370044932,1751863832183,-460.0,0.00017327,2]
[370044933,1751863832192,-460.0,0.00017327,2]
[370044934,1751863832201,-460.0,0.00017327,2]
[370044935,1751863832210,-460.0,0.00017327,2]
[370044936,1751863832219,-460.0,0.00017327,2]
[370044937,1751863832228,-466.00231493,0.00017327,2]
[370044938,1751863832237,-460.0,0.00017327,2]
[370044939,1751863832247,-460.0,0.00017327,2]
[370044940,1751863832256,-460.0,0.00017327,2]
[370044941,1751863832268,-460.0,0.00017327,2]
[370044942,1751863832278,-460.0,0.00017327,2]
[370044943,1751863832287,-589.42,0.00017327,2]
[370044944,1751863832296,-460.0,0.00017601,2]
[370044945,1751863832306,-192.60972682,0.00017874,2]
[370044946,1751863832315,-460.0,0.00017874,2]
[370044947,1751863832325,-460.0,0.00017874,2]
[370044948,1751863832334,-460.0,0.00017874,2]
[370044949,1751863832344,-460.0,0.00017874,2]
[370044950,1751863832354,-460.0,0.00017874,2]
[370044951,1751863832363,-460.0,0.00017874,2]
[370044952,1751863832372,-357.92,0.00017875,2]
[370044953,1751863832381,-460.0,0.00017875,2]
[370044954,1751863832391,-460.0,0.00017875,2]
[370044955,1751863832400,-460.0,0.00018273,2]
[370044956,1751863832409,-1003.2660744,0.00018273,2]
[370044957,1751863832418,-258.51295092,0.00018273,2]
[370044958,1751863832428,-460.0,0.00018273,2]
[370044959,1751863832437,-460.0,0.00018273,2]
[370044960,1751863832446,-460.0,0.00018273,2]
[370044961,1751863832455,-460.0,0.00018274,2]
[370044962,1751863832465,-461.50150351,0.00018274,2]
[370044963,1751863832474,-460.0,0.00018274,2]
[370044964,1751863832483,-471.85438241,0.00018274,2]
[370044965,1751863832492,-460.0,0.00018274,2]
[370044966,1751863832502,-460.0,0.00018274,2]
[370044967,1751863832511,-488.00398843,0.00018274,2]
[370044968,1751863832520,-460.0,0.00018274,2]
[370044969,1751863832530,-461.61351582,0.00018274,2]
[370044970,1751863832539,-460.0,0.00018274,2]
[370044971,1751863832549,-460.0,0.00018274,2]
[370044972,1751863832559,-460.0,0.00018274,2]
[370044973,1751863832568,-460.0,0.00018274,2]
[370044974,1751863832578,-460.0,0.00018274,2]
[370044975,1751863832588,-460.0,0.00018274,2]
[370044976,1751863832597,-460.0,0.00018274,2]
[370044977,1751863832606,-460.0,0.00018274,2]
[370044978,1751863832616,-460.0,0.00018274,2]
[370044979,1751863832625,-460.0,0.00018274,2]
[370044980,1751863832634,-460.0,0.00018274,2]
[370044981,1751863832643,-460.0,0.00018274,2]
[370044982,1751863832653,-460.0,0.00018274,2]
[370044983,1751863832662,-555.63522117,0.00018274,2]
[370044984,1751863832671,-460.0,0.00018274,2]
[370044985,1751863832680,-460.0,0.00018274,2]
[370044986,1751863832690,-460.0,0.00018274,2]
[370044987,1751863832699,-460.0,0.00018274,2]
[370044988,1751863832709,-460.0,0.00018274,2]
[370044989,1751863832719,-460.0,0.00018274,2]
[370044990,1751863832728,-460.0,0.00018274,2]
[370044991,1751863832737,-500.0,0.00018274,2]
[370044992,1751863832746,-460.0,0.00018274,2]
[370044993,1751863832755,-460.0,0.00018274,2]
[370044994,1751863832764,-460.0,0.00018274,2]
[370044995,1751863832774,-460.0,0.00018274,2]
[370044996,1751863832783,-254.20277781,0.00018274,2]
[370044997,1751863832792,-460.0,0.00018274,2]
[370044998,1751863832801,-460.0,0.00018274,2]
[370044999,1751863832810,-460.0,0.00018274,2]
[370045000,1751863832820,-460.0,0.00018274,2]
[370045001,1751863832830,-463.02156575,0.00018274,2]
[370045002,1751863832840,-465.16537603,0.00018274,2]
[370045003,1751863832849,-461.02537583,0.00018274,2]
[370045004,1751863832859,-460.0,0.00018274,2]
[370045005,1751863832868,-460.0,0.00018274,2]
[370045006,1751863832877,-460.0,0.00018274,2]
[370045007,1751863832887,-464.3245912,0.00018274,2]
[370045008,1751863832896,-460.0,0.00018274,2]
[370045009,1751863832906,-460.0,0.00018274,2]
[370045010,1751863832915,-460.0,0.00018274,2]
[370045011,1751863832925,-460.0,0.00018274,2]
[370045012,1751863832934,-460.0,0.00018274,2]
[370045013,1751863832944,-460.0,0.00018274,2]
[370045014,1751863832953,-500.0,0.00018274,2]
[370045015,1751863832963,-460.0,0.00018274,2]
[370045016,1751863832972,-460.0,0.00018274,2]
[370045017,1751863832982,-460.0,0.00018274,2]
[370045018,1751863832991,-460.0,0.00018274,2]
[370045019,1751863833000,-460.0,0.00018274,2]
[370045020,1751863833010,-460.0,0.00018274,2]
[370045021,1751863833019,-460.0,0.00018274,2]
[370045022,1751863833029,-460.0,0.00018274,2]
[370045023,1751863833039,-460.0,0.00018274,2]
[370045024,1751863833049,-460.0,0.00018274,2]
[370045025,1751863833059,-460.0,0.00018274,2]
[370045026,1751863833068,-460.0,0.00018274,2]
[370045027,1751863833078,-460.0,0.00018274,2]
[370045028,1751863833087,-500.0,0.00018274,2]
[370045029,1751863833097,-460.0,0.00018274,2]
[370045030,1751863833107,-460.0,0.00018274,2]
[370045031,1751863833117,-460.0,0.00018274,2]
[370045032,1751863833127,-460.0,0.00018274,2]
[370045033,1751863833137,-460.0,0.00018274,2]
[370045034,1751863833146,-460.0,0.00018274,2]
[370045035,1751863833156,-460.0,0.00018274,2]
[370045036,1751863833166,-460.0,0.00018274,2]
[370045037,1751863833175,-460.0,0.00018274,2]
[370045038,1751863833185,-460.0,0.00018274,2]
[370045039,1751863833195,-460.0,0.00018274,2]
[370045040,1751863833205,-460.0,0.00018274,2]
[370045041,1751863833215,-527.03022565,0.00018274,2]
[370045042,1751863833224,-460.0,0.00018274,2]
[370045043,1751863833234,-460.0,0.00018274,2]
[370045044,1751863833243,-460.0,0.00018274,2]
[370045045,1751863833252,-460.0,0.00018274,2]
[370045046,1751863833265,-461.61156139,0.00018274,2]
[370045047,1751863833275,-460.0,0.00018274,2]
[370045048,1751863833284,-460.0,0.00018274,2]
[370045049,1751863833294,-460.66429953,0.00018274,2]
[370045050,1751863833303,-460.0,0.00018274,2]
[370045051,1751863833314,-460.0,0.00018274,2]
[370045052,1751863833323,-460.59967586,0.00018274,2]
[370045053,1751863833333,-460.61088237,0.00018274,2]
[370045054,1751863833343,-460.0,0.00018274,2]
[370045055,1751863833353,-460.0,0.00018274,2]
[370045056,1751863833363,-460.0,0.00018274,2]
[370045057,1751863833372,-499.14138798,0.00018274,2]
[370045058,1751863833381,-460.0,0.00018274,2]
[370045059,1751863833391,-460.0,0.00018274,2]
[370045060,1751863833400,-466.01776952,0.00018274,2]
[370045061,1751863833410,-460.0,0.00018274,2]
[370045062,1751863833419,-460.0,0.00018274,2]
[370045063,1751863833429,-460.0,0.00018274,2]
[370045064,1751863833438,-460.0,0.00018274,2]
[370045065,1751863833447,-462.01166203,0.00018274,2]
[370045066,1751863833457,-460.0,0.00018274,2]
[370045067,1751863833466,-571.17893503,0.00018274,2]
[370045068,1751863833475,-460.0,0.00018274,2]
[370045069,1751863833484,-460.0,0.00018274,2]
[370045070,1751863833493,-460.0,0.00018274,2]
[370045071,1751863833502,-462.29256265,0.00018274,2]
[370045072,1751863833512,-460.0,0.00018274,2]
[370045073,1751863833521,-460.0,0.00018274,2]
[370045074,1751863833531,-460.0,0.00018274,2]
[370045075,1751863833541,-400.72824932,0.00018274,2]
[370045076,1751863833550,-218.15013796,0.00018274,2]
[370045077,1751863833559,-460.0,0.00018274,2]
[370045078,1751863833568,-460.0,0.00018274,2]
[370045079,1751863833577,-460.0,0.00018274,2]
[370045080,1751863833587,-460.0,0.00018274,2]
[370045081,1751863833596,-460.0,0.00018274,2]
[370045082,1751863833605,-460.0,0.00018274,2]
[370045083,1751863833614,-460.0,0.00018274,2]
[370045084,1751863833623,-460.0,0.00018274,2]
[370045085,1751863833633,-460.0,0.00018275,2]
[370045086,1751863833643,-460.0,0.00018275,2]
[370045087,1751863833652,-460.0,0.00018275,2]
[370045088,1751863833661,-460.0,0.00018275,2]
[370045089,1751863833671,-500.0,0.00018275,2]
[370045090,1751863833680,-500.0,0.00018275,2]
[370045091,1751863833690,-500.0,0.00018275,2]
[370045092,1751863833699,-500.0,0.00018275,2]
[370045093,1751863833709,-500.0,0.00018275,2]
[370045094,1751863833718,-500.0,0.00018275,2]
[370045095,1751863833728,-438.40489728,0.00018275,2]
[370045096,1751863833737,-500.0,0.00018275,2]
[370045097,1751863833747,-500.0,0.00018275,2]
[370045098,1751863833756,-166.68349793,0.00018275,2]
[370045099,1751863833765,-233.41491138,0.00018275,2]
[370045100,1751863833774,-373.1249139,0.00018275,2]
[370045101,1751863833784,-460.0,0.00018275,2]
[370045102,1751863833793,-324.59854079,0.00018275,2]
[370045103,1751863833804,-460.0,0.00018275,2]
[370045104,1751863833813,-460.0,0.00018275,2]
[370045105,1751863833822,-468.72775545,0.00018275,2]
[370045106,1751863833832,-462.81172036,0.00018276,2]
[370045107,1751863833841,-465.59157776,0.00018276,2]
[370045108,1751863833851,-460.0,0.00018276,2]
[370045109,1751863833860,-428.87,0.00018276,2]
[370045110,1751863833870,-460.0,0.00018276,2]
[370045111,1751863833879,-177.76912002,0.00018276,2]
[370045112,1751863833889,-500.0,0.00018276,2]
[370045113,1751863833899,-460.0,0.00018276,2]
[370045114,1751863833908,-460.0,0.00018276,2]
[370045115,1751863833918,-460.0,0.00018276,2]
[370045116,1751863833927,-460.0,0.00018276,2]
[370045117,1751863833936,-460.0,0.00018276,2]
[370045118,1751863833946,-460.0,0.00018276,2]
[370045119,1751863833955,-461.77429171,0.00018276,2]
[370045120,1751863833965,-460.0,0.00018276,2]
[370045121,1751863833975,-460.0,0.00018276,2]
[370045122,1751863833984,-460.0,0.00018276,2]
[370045123,1751863833994,-460.0,0.00018276,2]
[370045124,1751863834003,-517.75,0.00018276,2]
[370045125,1751863834013,-460.0,0.00018276,2]
[370045126,1751863834022,-460.0,0.00018276,2]
[370045127,1751863834032,-460.0,0.00018276,2]
[370045128,1751863834041,-460.0,0.00018276,2]
[370045129,1751863834051,-460.0,0.00018276,2]
[370045130,1751863834061,-460.0,0.00018276,2]
[370045131,1751863834070,-460.0,0.00018276,2]
[370045132,1751863834091,-460.0,0.00018276,2]
[370045133,1751863834102,-460.0,0.00018276,2]
[370045134,1751863834112,-460.0,0.00018276,2]
[370045135,1751863834121,-460.0,0.00018276,2]
[370045136,1751863834131,-460.0,0.00018276,2]
[370045137,1751863834141,-460.0,0.00018276,2]
[370045138,1751863834151,-460.0,0.00018276,2]
[370045139,1751863834160,-460.0,0.00018276,2]
[370045140,1751863834170,-460.0,0.00018276,2]
[370045141,1751863834180,-460.0,0.00018276,2]
[370045142,1751863834371,-468.46136586,0.00018276,2]
[370045143,1751863834381,-460.0,0.00018276,2]
[370045144,1751863834391,-460.0,0.00018276,2]
[370045145,1751863834401,-460.0,0.00018276,2]
[370045146,1751863834411,-460.0,0.00018276,2]
[370045147,1751863834420,-460.0,0.00018276,2]
[370045148,1751863834429,-500.0,0.00018276,2]
[370045149,1751863834438,-460.0,0.00018276,2]
[370045150,1751863834448,-460.0,0.00018276,2]
[370045151,1751863834459,-460.0,0.00018276,2]
[370045152,1751863834469,-462.74713378,0.00018276,2]
[370045153,1751863834479,-460.0,0.00018276,2]
[370045154,1751863834491,-460.0,0.00018276,2]
[370045155,1751863834501,-460.0,0.00018276,2]
[370045156,1751863834510,-460.0,0.00018276,2]
[370045157,1751863834519,-460.0,0.00018276,2]
[370045158,1751863834528,-460.0,0.00018276,2]
[370045159,1751863834538,-460.0,0.00018276,2]
[370045160,1751863834547,-460.0,0.00018276,2]
[370045161,1751863834556,-460.0,0.00018276,2]
[370045162,1751863834565,-460.0,0.00018276,2]
[370045163,1751863834574,-460.0,0.00018276,2]
[370045164,1751863834584,-460.0,0.00018276,2]
[370045165,1751863834593,-460.0,0.00018276,2]
[370045166,1751863834603,-460.0,0.00018276,2]
[370045167,1751863834612,-460.0,0.00018276,2]
[370045168,1751863834621,-460.0,0.00018276,2]
[370045169,1751863834630,-460.0,0.00018276,2]
[370045170,1751863834640,-460.0,0.00018276,2]
[370045171,1751863834650,-460.0,0.00018276,2]
[370045172,1751863834659,-460.0,0.00018276,2]
[370045173,1751863834669,-460.0,0.00018276,2]
[370045174,1751863834678,-460.0,0.00018276,2]
[370045175,1751863834688,-460.0,0.00018276,2]
[370045176,1751863834697,-460.0,0.00018276,2]
[370045177,1751863834706,-460.0,0.00018276,2]
[370045178,1751863834715,-460.0,0.00018276,2]
[370045179,1751863834726,-460.0,0.00018276,2]
[370045180,1751863834736,-460.0,0.00018276,2]
[370045181,1751863834746,-256.96970957,0.00018276,2]
[370045182,1751863834756,-460.0,0.00018276,2]
[370045183,1751863834767,-460.0,0.00018276,2]
[370045184,1751863834778,-460.0,0.00018276,2]
[370045185,1751863834788,-460.0,0.00018276,2]
[370045186,1751863834799,-460.0,0.00018276,2]
[370045187,1751863834809,-273.50876602,0.00018276,2]
[370045188,1751863834819,-463.64292286,0.00018276,2]
[370045189,1751863834831,-463.28901256,0.00018276,2]
[370045190,1751863834840,-462.49661932,0.00018276,2]
[370045191,1751863834851,-460.0,0.00018276,2]
[370045192,1751863834860,-460.0,0.00018276,2]
[370045193,1751863834869,-463.37460702,0.00018276,2]
[370045194,1751863834878,-460.0,0.00018276,2]
[370045195,1751863834888,-1291.45274226,0.00018403,2]
[370045196,1751863834897,-249.33,0.00018548,2]
[370045197,1751863834906,-460.0,0.00018548,2]
[370045198,1751863834916,-460.0,0.00018548,2]
[370045199,1751863834926,-460.0,0.00018548,2]
[370045200,1751863834935,-408.17,0.00018548,2]
[370045201,1751863834945,-460.0,0.00018548,2]
[370045202,1751863834954,-482.08,0.00018548,2]
[370045203,1751863834963,-161.4,0.00018548,2]
[370045204,1751863834973,-392.67,0.00018548,2]
[370045205,1751863834982,-460.0,0.00018548,2]
[370045206,1751863834992,-460.0,0.00018549,2]
[370045207,1751863835001,-500.0,0.0001855,2]